Cogmind - Beta 17 @@@ ROGUE MODE // 2026.07.30 @ 21:23:35 Player: PE-P51 Result: Destroyed by as-56029 with Assembled Rifle Performance ------------- Evolutions (1) 500 Regions Visited (3) 600 Robots Destroyed (64) 320 Value Destroyed (1353) 1353 Prototype IDs (4) 80 Alien Tech Used (0) 0 Bonus (18) 18 TOTAL SCORE: 2871 Bonus ------- High Alert Combat Kills 18 Cogmind --------- Core Integrity 0/400 Matter 233/300 Energy 100/100 System Corruption 1% Temperature Cool (10) Movement Hovering (500) Ox6 Location -9/Mines Parts ------- > --- POWER (1) -------- (None) > --- PROPULSION (3) --- Combat Airjet > --- UTILITY (2) ------ Huge Storage Unit > --- WEAPON (3) ------- (None) > --- INVENTORY (25) --- Cooled Ion Engine Light Treads Light Treads Light Treads Wheel Compact Wheel Improved Flight Unit Improved Heat Sink Sensor Array Improved Terrain Scanner Transport Network Coupler Advanced Targeting Computer Advanced Targeting Computer Medium Armor Plating Beam Rifle Spread Laser Spread Laser Advanced Beam Cannon Advanced Beam Cannon Advanced Beam Cannon Advanced Beam Cannon Heavy Assault Rifle Mining Laser Katana Peak State ------------ > --- POWER ------------ Cooled Ion Engine > --- PROPULSION ------- Light Treads Combat Airjet > --- UTILITY ---------- Huge Storage Unit Improved Light Armor Plating > --- WEAPON ----------- Shotgun Shotgun Grenade Launcher > --- INVENTORY -------- Cooled Ion Engine Light Treads Light Treads Light Treads Wheel Compact Wheel Improved Flight Unit Improved Heat Sink Sensor Array Improved Terrain Scanner Transport Network Coupler Advanced Targeting Computer Advanced Targeting Computer Medium Armor Plating Beam Rifle Spread Laser Spread Laser Advanced Beam Cannon Advanced Beam Cannon Advanced Beam Cannon Advanced Beam Cannon Heavy Assault Rifle Mining Laser Katana [Rating: 23] Favorites ----------- Power Ion Engine Engine Ion Engine Propulsion Aluminum Leg Treads Improved Treads Leg Aluminum Leg Hover Unit Combat Airjet Utility Small Storage Unit Device Seismic Detector Storage Small Storage Unit Processor Signal Interpreter Protection Improved Light Armor Plating Weapon Spread Laser Energy Gun Spread Laser Energy Cannon Advanced Beam Cannon Ballistic Gun Shotgun Launcher Grenade Launcher Special Weapon Mining Laser Slashing Weapon Katana Build | -11 -10 -9 -9 ------- Run | Yrd Mat Mat Min Slots Evolved 2 | . . 2 . Power . | . . . . Propulsion 1 | . . 1 . Utility . | . . . . Weapon 1 | . . 1 . Parts Attached 52 | 11 10 29 2 Power 7 | 2 . 5 . Engine 7 | 2 . 5 . Core . | . . . . Reactor . | . . . . Propulsion 16 | 2 4 9 1 Treads 10 | 2 . 8 . Leg 5 | . 4 1 . Wheel . | . . . . Hover 1 | . . . 1 Flight . | . . . . Utility 9 | 3 1 4 1 Device 6 | 3 1 2 . Storage 1 | . . 1 . Processor 1 | . . 1 . Hackware . | . . . . Protection 1 | . . . 1 Artifact . | . . . . Weapon 20 | 4 5 11 . Energy Gun 13 | 3 5 5 . Energy Cannon 1 | . . 1 . Ballistic Gun 3 | . . 3 . Ballistic Cannon . | . . . . Launcher 1 | . . 1 . Special Weapon 1 | 1 . . . Impact Weapon . | . . . . Slashing Weapon 1 | . . 1 . Piercing Weapon . | . . . . Special Melee Weapon . | . . . . Unidentified Prototypes 4 | . . 4 . Parts Lost 24 | 7 5 3 9 Power 4 | 2 1 . 1 Propulsion 8 | 1 2 2 3 Utility 2 | 1 . . 1 Weapon 10 | 3 2 1 4 Highest Loss Streak 9 | 7 2 3 9 To Critical Strikes . | . . . . Average Backups 11 | 7 6 19 24 Power . | . . 1 1 Propulsion 4 | 4 4 5 6 Utility 2 | . 1 5 7 Weapon 3 | . . 7 10 Tool/Special . | . . . . Unused Backups 38 | 3 6 10 19 Power 4 | 1 . 2 1 Propulsion 16 | 1 5 5 5 Utility 12 | 1 1 3 7 Weapon 6 | . . . 6 Tool/Special . | . . . . Average Slot Usage (%) 97 | . 88 98 94 Engine 9 | . 9 9 10 Treads 24 | . 3 28 29 Leg 6 | . 22 4 . Device 7 | . 14 6 . Storage 11 | . 14 11 11 Processor 3 | . . 4 9 Energy Gun 27 | . 23 28 9 Ballistic Gun 3 | . . 3 21 Peak Build Rating 23 | 8 9 22 23 Average Rating 11 | 7 6 18 20 On Entrance 10 | 6 7 9 21 Avg Prop Armor Cover (%) . | . . . . Naked Turns . | . . . . Heaviest Build 98 | 14 13 98 97 Greatest Support 69 | 40 40 69 66 Greatest Overweight (x) 2 | . 1 1 2 Average Overweight (x) . | . . . 1 Largest Inventory Capacity 25 | 8 8 25 25 Average Capacity 13 | 8 8 20 25 Most Carried 25 | 8 8 25 25 Average Carried 11 | 7 6 19 24 Final Capacity 25 | 8 8 25 25 Final Carried 25 | 8 8 25 24 Class Distribution -------------------- 62% | Mutant 32% | Gunner 5% | Scavenger-Gunner Dominant Class ---------------- Mutant | -10/Materials Gunner | -9/Materials Gunner | -9/Mines Resources | -11 -10 -9 -9 ----------- Run | Yrd Mat Mat Min Matter Collected 1067 | 347 92 628 . Remotely . | . . . . Salvage Created 1572 | 219 196 1145 12 Parts 97 | 11 6 80 . Haulers Intercepted 3 | . . 3 . Recyclers Shooed 1 | 1 . . . Parts Field Recycled . | . . . . Retrieved Matter . | . . . . Parts Self-Destructed . | . . . . Prevented . | . . . . Parts Restored . | . . . . Kills | -11 -10 -9 -9 ------- Run | Yrd Mat Mat Min Combat Hostiles Destroyed 59 | 6 5 37 11 Melee 2 | 2 . . . Guns 35 | 4 4 27 . AOE 21 | . . 10 11 Classes Destroyed 12 | 3 1 8 . Worker 3 | . . 3 . Builder 2 | . . 2 . Tunneler 8 | 5 . 3 . Hauler 3 | . . 3 . Recycler 3 | 1 . 2 . Operator 1 | . . 1 . Watcher 2 | . . 2 . Swarmer 18 | . . 18 . Grunt 15 | . 5 10 . Brawler 1 | . . 1 . Sentry 8 | . . 8 . Assembled 17 | 6 . . 11 Best Kill Streak 11 | 2 2 9 11 Combat Bots Only 11 | 2 2 7 11 Max Kills in Single Turn 3 | 1 2 3 3 Gunslinging 1 | . 1 1 . Exploded 3 | . . 3 3 Melee 1 | 1 . . . Uniques/NPCs Destroyed . | . . . . Combat | -11 -10 -9 -9 -------- Run | Yrd Mat Mat Min Hostile Shots Fired 325 | 55 55 141 74 Missed 87 | 11 21 34 21 Hits 238 | 44 34 107 53 Melee 26 | 16 . 2 8 Projectile 212 | 28 34 105 45 AOE 5 | . . . 5 Critical Strikes 4 | 1 . 3 . Part Disruptions 1 | 1 . . . Damage Taken 3635 | 799 450 1355 1031 Core 653 | 155 94 130 274 Absorbed by Shields . | . . . . Regen/Repaired (Parts) 57 | . . 57 . Core Remaining (%) 19 | 38 . . . Volleys Fired 198 | 109 21 62 6 Largest 3 | 2 2 3 3 Hottest 195 | 100 130 195 111 Shots Fired 331 | 118 43 162 8 Gun 267 | 66 43 155 3 Cannon . | . . . . Launcher 12 | . . 7 5 Special 52 | 52 . . . Kinetic 42 | . . 40 2 Thermal 223 | 91 16 115 1 Explosive 12 | . . 7 5 Electromagnetic 54 | 27 27 . . Robot Hit Streak 20 | 13 4 20 6 Robot Miss Streak 9 | 4 5 9 1 Penetration Max . | . . . . Secondary Targets 6 | 1 1 4 . Max Gunslinging Chain 1 | 1 1 1 . Shots Hit Robots 183 | 36 26 118 3 Core Hits 221 | 17 12 157 35 Critical Kills . | . . . . Critical Parts Destroyed . | . . . . Critical Strikes 6 | 4 . 2 . Burn 5 | 3 . 2 . Corrupt 1 | 1 . . . Melee Attacks 1 | . . 1 . Impact . | . . . . Slashing 1 | . . 1 . Piercing . | . . . . Sneak Attacks . | . . . . Combat Hostiles . | . . . . Follow-up Attacks . | . . . . Damage Inflicted 4187 | 460 393 2570 764 Guns 2718 | 457 321 1905 35 Cannons . | . . . . Explosions 1375 | . 55 591 729 Melee . | . . . . Ramming 94 | 3 17 74 . Kinetic 456 | . . 442 14 Thermal 1981 | 314 183 1463 21 Explosive 1251 | . . 522 729 Electromagnetic 405 | 143 193 69 . Impact . | . . . . Slashing . | . . . . Piercing . | . . . . Highest Corruption 12 | 12 12 1 1 Average Corruption 5 | 11 12 1 1 Corruption Purged . | . . . . Corruption Blocked . | . . . . Effects 56 | 27 19 8 2 Message Errors 9 | 2 6 . 1 Matter Fused 18 | 8 4 5 1 Heat Flow Errors 7 | 3 1 3 . Energy Discharges 7 | 2 5 . . Parts Fused 1 | 1 . . . Data Loss (minor) 6 | 5 1 . . Data Loss (major) 3 | 2 1 . . Misfires 4 | 3 1 . . Weapon Failures 1 | 1 . . . Overload Shots . | . . . . Overflow Damage 109 | . 15 35 59 Projectiles . | . . . . Explosions 109 | . 15 35 59 Melee . | . . . . Knockbacks . | . . . . Impact . | . . . . Kinetic . | . . . . Secondary . | . . . . Self-Inflicted Damage 128 | . 45 23 60 Shots 5 | . 1 2 2 Rammed 8 | 4 . 4 . Targets Rammed 24 | 6 13 5 . Kicked 13 | . 13 . . Crushed 3 | 2 . 1 . Highest Temperature 234 | 234 215 233 36 Average Temperature 54 | 41 52 75 17 Received Heat Transfer 929 | 200 222 447 60 Siege Activations . | . . . . Martial Activations . | . . . . Shielding Activations . | . . . . Robots Disrupted . | . . . . Combat Hostiles . | . . . . Robots Corrupted 1 | . 1 . . Combat Hostiles 1 | . 1 . . Parts Fried 3 | . 2 1 . Impact Corruptions . | . . . . Robots Melted . | . . . . Combat Hostiles . | . . . . Parts Melted 4 | . . 4 . Heat Transferred 3571 | 1147 280 2119 25 Parts Sabotaged . | . . . . Parts Stolen . | . . . . Parts Stripped . | . . . . Power Chain Reactions 1 | . 1 . . Alert | -11 -10 -9 -9 ------- Run | Yrd Mat Mat Min Maximum Alert Level 2 | . . 2 . Low Security (%) 79 | 100 100 45 100 Level 1 16 | . . 45 . Level 2 3 | . . 9 . Level 3 . | . . . . Level 4 . | . . . . Level 5 . | . . . . High Security . | . . . . Max Security . | . . . . Peak Influence 456 | 10 142 456 130 Initial 130 | . . 44 130 Average 85 | . 50 219 99 Influence Increases 1503 | 30 304 1158 11 Destroy 0b10 Robot/C 840 | . 100 740 . Destroy 0b10 Robot/NC 110 | 30 . 80 . Destroy Leader 170 | . 20 150 . Successful Hack 33 | . 12 21 . Select Force Hacks 80 | . 80 . . Disable Machine 60 | . 15 45 . Destroy Structure 45 | . 2 32 11 Partial Spotted 15 | . . 15 . Lose Combat Pursuer 150 | . 75 75 . Influence Decreases 1503 | 30 198 928 347 Entered New Map 268 | . . 62 206 Time Decay 924 | 30 148 686 60 Lost Part 161 | . 50 30 81 Purge Threat 150 | . . 150 . Squads Dispatched 3 | . 2 1 . Investigation 3 | . 2 1 . Extermination . | . . . . Reinforcement . | . . . . Assault . | . . . . Garrison . | . . . . Intercept . | . . . . Searches Triggered . | . . . . Construction Impeded . | . . . . Haulers Reinforced . | . . . . Active Scanning Responses . | . . . . Cargo Convoy Interrupts . | . . . . Stealth | -11 -10 -9 -9 --------- Run | Yrd Mat Mat Min Distress Signals 4 | . 1 2 1 Communications Jammed . | . . . . Distress Signals . | . . . . Times Spotted 91 | 7 16 49 19 Peak Tracking Total 16 | 3 5 8 16 Tactical Retreats 7 | 1 3 3 . Traps | -11 -10 -9 -9 ------- Run | Yrd Mat Mat Min Traps Triggered 1 | . . 1 . Indirectly . | . . . . Trap Hack Attempts . | . . . . Triggered . | . . . . Disarmed . | . . . . Reprogrammed . | . . . . Reused . | . . . . Traps Extracted . | . . . . Installed . | . . . . Triggered . | . . . . Machines | -11 -10 -9 -9 ---------- Run | Yrd Mat Mat Min Machines Disabled 4 | . 1 3 . Max in Single Turn 1 | . 1 1 . Machines Repaired . | . . . . Machines Dismantled . | . . . . Machines Sabotaged 1 | . 1 . . Overloaded Fab Kills . | . . . . Hacking | -11 -10 -9 -9 --------- Run | Yrd Mat Mat Min Machines Accessed 15 | . 5 10 . Terminals 11 | . 4 7 . Fabricators . | . . . . Repair Stations 1 | . . 1 . Recycling Units 2 | . 1 1 . Scanalyzers 1 | . . 1 . Garrison Access . | . . . . Total Hacks 37 | . 10 27 . Successful 13 | . 4 9 . Failed 23 | . 6 17 . Catastrophic 5 | . 1 4 . Database Lockouts 1 | . . 1 . Manual 22 | . 5 17 . Terminals 29 | . 9 20 . Fabricators . | . . . . Repair Stations 1 | . . 1 . Recycling Units 3 | . 1 2 . Scanalyzers 4 | . . 4 . Garrison Access . | . . . . Terminal Hacks 7 | . 2 5 . Branch Access Points 2 | . 1 1 . Alert Level 1 | . . 1 . Unreport Threat 1 | . . 1 . Locate Traps 2 | . 1 1 . Registered Components 1 | . . 1 . Fabricator Hacks . | . . . . Repair Station Hacks . | . . . . Recycling Unit Hacks . | . . . . Scanalyzer 3 | . . 3 . Retrieve Study 3 | . . 3 . Garrison Access Hacks . | . . . . Unauthorized Hacks 3 | . 2 1 . Terminals 1 | . 1 . . Sabotage 1 | . 1 . . Fabricators . | . . . . Repair Stations 1 | . . 1 . Patch 1 | . . 1 . Recycling Units 1 | . 1 . . Tunnel 1 | . 1 . . Scanalyzers . | . . . . Garrison Access . | . . . . Data Cores Recovered 1 | . . 1 . Used 1 | . . 1 . Hacking Detections 12 | . 3 9 . Full Trace Events 1 | . 1 . . Feedback Events . | . . . . Feedback Blocked . | . . . . Robot Schematics Acquired . | . . . . Robots Built . | . . . . Authchips . | . . . . Time . | . . . . Total Robot Build Rating . | . . . . Part Schematics Acquired . | . . . . Parts Built . | . . . . Authchips . | . . . . Time . | . . . . Total Part Build Rating . | . . . . Part Studies Acquired 3 | . . 3 . Parts Repaired . | . . . . Time . | . . . . Parts Recycled . | . . . . Recycled Matter . | . . . . Retrieved Matter . | . . . . Retrieved Components . | . . . . Parts Scanalyzed . | . . . . Part Schematics Acquired . | . . . . Parts Damaged . | . . . . Bothacking | -11 -10 -9 -9 ------------ Run | Yrd Mat Mat Min Used RIF Installer . | . . . . Robots Hacked . | . . . . Non-combat . | . . . . Combat . | . . . . Robot Hacks Applied . | . . . . Relay Couplers Released . | . . . . Fabnet Peak Effective % . | . . . . Robots Rewired . | . . . . Allies Hacked . | . . . . Hacks Repelled . | . . . . Allies | -11 -10 -9 -9 -------- Run | Yrd Mat Mat Min Total Allies . | . . . . Largest Group . | . . . . Highest-Rated Group . | . . . . Highest-Rated Ally . | . . . . Total Orders . | . . . . Ally Attacks . | . . . . Total Damage . | . . . . Kills . | . . . . Allies Corrupted . | . . . . Allies Melted . | . . . . Intel | -11 -10 -9 -9 ------- Run | Yrd Mat Mat Min Active Infowar (turns) 3720 | 3343 377 . . Terrain 1631 | 1631 . . . Seismic 2089 | 1712 377 . . Robot Analysis Total . | . . . . Derelict Logs Recovered . | . . . . Drone Launches . | . . . . Drone Recoveries . | . . . . Exploration | -11 -10 -9 -9 ------------- Run | Yrd Mat Mat Min Turns Passed 7433 | 4139 428 2744 122 Spaces Moved 2585 | 1233 240 1078 34 Core . | . . . . Treads 1359 | 409 24 892 34 Legs 1226 | 824 216 186 . Wheels . | . . . . Hover . | . . . . Flight . | . . . . Fastest Speed 105 | 120 120 105 240 Average Speed 165 | 133 125 208 242 Slowest Speed 320 | 160 190 240 320 Overloaded Moves . | . . . . Propulsion Burnouts . | . . . . Robots Hopped . | . . . . Potential Cave-ins . | . . . . Cave-ins Triggered . | . . . . Exploration Rate (%) 49 | 62 44 75 18 Regions Visited 3 Branch Regions 1 Pre-discovered Areas 1 | . 1 . . Known Exits Taken 1 | . . 1 . Unknown Exits Taken 2 | 1 1 . . Scrap Searched . | . . . . Spaces Dug 8 | 8 . . . Terrain Destroyed 61 | 17 3 28 13 Melee . | . . . . Projectile 17 | 17 . . . AOE 44 | . 3 28 13 Terrain Rammed . | . . . . Walls Destroyed . | . . . . Machines Disabled . | . . . . Actions | -11 -10 -9 -9 --------- Run | Yrd Mat Mat Min Total 5333 | 3504 324 1439 66 Wait 2377 | 2132 21 201 23 Move 2582 | 1232 239 1077 34 Hop . | . . . . Pick Up 50 | 8 9 33 . Fast Attach 11 | 4 4 2 1 Attach 12 | 5 2 4 1 Detach 3 | 2 1 . . Swap 42 | 3 5 33 1 Drop 33 | 3 9 21 . Fire 198 | 109 21 62 6 Melee 1 | . . 1 . Ram . | . . . . Kick 13 | . 13 . . Crush 11 | 6 . 5 . Escape Stasis . | . . . . Rewire . | . . . . Trap . | . . . . Miscellaneous . | . . . . Route ------- -11/Scrapyard -10/Materials (discovered 2 exits: *Mat / Min) -9/Materials (discovered 2 exits: *Mat / *Min) -9/Mines History --------- Turn | Location | Event 21 | -11/Scrapyard | Discovered new exit (range 3) 3255 | -11/Scrapyard | Assembled infested the area 3427 | -11/Scrapyard | System corruption reached 10% 3479 | -11/Scrapyard | Lost 7 parts (2p1n1u3w) 3544 | -11/Scrapyard | Core integrity fell below 50% 4140 | -11/Scrapyard | Entered Materials 4154 | -10/Materials | Build established: Mutant 4411 | -10/Materials | Identified exit to Mines 4429 | -10/Materials | Core integrity fell below 20% 4565 | -10/Materials | Discovered new exit (range 3) 4568 | -10/Materials | Entered another Materials area 4568 | -9/Materials | Evolved 2 slots: Propulsion x1, Weapon x1 4844 | -9/Materials | Build established: Scavenger-Gunner 5085 | -9/Materials | Destroyed 7 combat bots 5164 | -9/Materials | Lost 3 parts (2n1w) 5457 | -9/Materials | Build established: Gunner 5960 | -9/Materials | Central database locked down 6269 | -9/Materials | Discovered new exit (range 8) 6301 | -9/Materials | Identified exit to Materials 7122 | -9/Materials | Discovered new exit (range 11) 7124 | -9/Materials | Identified exit to Mines 7312 | -9/Materials | Entered Mines 7330 | -9/Mines | Assembled infested the area 7423 | -9/Mines | Core integrity fell below 50% 7428 | -9/Mines | Core integrity fell below 20% 7434 | -9/Mines | Destroyed by as-56029 with Assembled Rifle Last Messages --------------- 07429_ The unstable cave ceiling collapses. 07429_ Shotgun destroyed. 07429_ Lgt. Treads destroyed. 07429_ as-03224 destroyed. 07429_ as-84237 destroyed. 07429_ as-26075 destroyed. 07431_ The unstable cave ceiling collapses. 07431_ Imp. Light Armor Plating destroyed. 07431_ as-48800 destroyed. 07431_ as-46194 destroyed. 07431_ as-63114 destroyed. 07433_ Destroyed Asb. Hover Unit. 07433_ as-61805 destroyed. 07433_ Shotgun destroyed. 07433_ Destroyed Shotgun. 07433_ Grenade Launcher destroyed. 07433_ Destroyed Grenade Launcher. 07433_ Destroyed Asb. F-torch. 07433_ as-52622 destroyed. 07433_ as-45375 destroyed. Map ----- +----------------------------------------------------+ | ????????????????????????????????????????????? | | ????????????????????????????????????????????? | | ????????????????????????????????????????????? | | ????????????????????????????????????????????? | | ????????????????????????????????????????????? | | ????????????????????????????????????????????? | | ????????????????????????????????????????????? | | ????????????????????????????????????????????? | | ????????????????????????????????????????????? | | ????????????????????????????????????????????? | | ????????????????????????????????????????????? | | ????????????????????????????????????????????? | | ??????????????????????????#?????????????????? | | ????????????????????????? #?????????????????? | | ????????????????????????? #?????????????????? | | ???????????????????????? #?????????????????? | | ??????? ??????????????? ####??????????????? | | ??????? ?????????????# ##?????????????? | | ?????? ???????????# #?????????????? | | ?????? #?????#### #?????????????? | | ????? #??## #??????????????? | | ?????# ?# #???????????????? | | ?????# # ##??????????????? | | ????# a a % ### #????????? | | ???? a ????????????? | | ??? @ #??????????????????? | | ???? a ##??????????????????? | | ???? %= ##???????????????????? | | ?????? ## ] #????????????????????? | | ?????? ### % #????????????????????? | | ????????????# #????????????????????? | | ????????????# ##????????????????????? | | ????????????# ############??????????? | | ????????????## #### # #??????????? | | ?????????????####??# # #??????????? | | ???????????????????# """ #??????????? | | ???????????????????#### """ #??????????? | | ??????????????????????# """ #??????????? | | ??????????????????????# #??????????? | | ??????????????????????# #??????????? | | ??????????????????????# #??????????? | | ??????????????????????############??????????? | | ????????????????????????????????????????????? | | | | | | | | | | | | | | | +----------------------------------------------------+ Best States ------------- Heat Dissipation 38 Energy Generation 14 Energy Capacity 280 Matter Stores 300 Matter Capacity 300 Sight Range 16 Terrain Scan Range 16 Terrain Scan Density 10 Armor Coverage 150 Evasion (%) 55 Recoil Reduction 3 Item Schematics ----------------- None Robot Schematics ------------------ None Fabricated ------------ Nothing Repaired ---------- Nothing Studied --------- Spread Laser | -9/Materials | Hacked Aluminum Leg | -9/Materials | Hacked Beam Rifle | -9/Materials | Hacked Alien Tech Used ----------------- None Achievements -------------- None Challenges ------------ None Game ------ Seed SalvagingStructuralNetwork Manual? 0 Play Time 00:31:03 Cumulative 347.7 hours Start 2026.07.30 @ 20:54:09 End 2026.07.30 @ 21:23:35 Sessions 1 Manual Loads 0 Difficulty Rogue Special Mode None Game No. 431 Rogue 429 Adventurer 2 Explorer 0 Win Type - Total 4 Types 2/0/0/1/1/0/0/0/0/0 Lore% 81 Gallery% 67 Achievement% 62 Wizard Run 0 Options --------- Layout 0 ASCII 0 Keyboard 0 Movement Numpad Keybinds 0 Fullscreen 2 Font 24/Smallcaps Map View 76x50 Zoom Use 0% Tactical HUD 1 Map Filters NONE Filters NONE Steam 1 RUN: af26e871-accb-44e4-8b71-d693ad3ff153